[Event "*** Titled Tuesday Blitz"]
[Site "Chess.com"]
[Date "2020.04.14"]
[Round "3"]
[White "Taran2004"]
[Black "ENEASZ"]
[Result "0-1"]
[WhiteElo "1996"]
[BlackElo "2503"]
[TimeControl "180+1"]
[EndTime "10:28:45 PDT"]
[Termination "ENEASZ won by checkmate"]

1. e4 {[%clk 0:03:00.9]} 1... d6 {[%clk 0:02:55.9]} 2. d4 {[%clk 0:02:58.6]}
2... Nf6 {[%clk 0:02:53.6]} 3. Nc3 {[%clk 0:02:57.9]} 3... e5 {[%clk 0:02:53.1]}
4. Nf3 {[%clk 0:02:57.2]} 4... Nbd7 {[%clk 0:02:52.5]} 5. Bc4 {[%clk 0:02:55.5]}
5... Be7 {[%clk 0:02:52]} 6. O-O {[%clk 0:02:54.3]} 6... O-O {[%clk 0:02:52.1]}
7. a4 {[%clk 0:02:53.6]} 7... c6 {[%clk 0:02:52.5]} 8. h3 {[%clk 0:02:41.5]}
8... b6 {[%clk 0:02:51.7]} 9. Be3 {[%clk 0:02:38.8]} 9... a6 {[%clk 0:02:48.6]}
10. d5 {[%clk 0:02:34]} 10... c5 {[%clk 0:02:46.8]} 11. Nd2 {[%clk 0:02:30.2]}
11... Ne8 {[%clk 0:02:34.4]} 12. f4 {[%clk 0:02:25.5]} 12... exf4 {[%clk
0:02:31.8]} 13. Bxf4 {[%clk 0:02:25.2]} 13... Bf6 {[%clk 0:02:32.3]} 14. Nf3
{[%clk 0:02:21.9]} 14... Qe7 {[%clk 0:02:30.8]} 15. Re1 {[%clk 0:02:21.2]} 15...
Ne5 {[%clk 0:02:30.4]} 16. Nxe5 {[%clk 0:02:20.4]} 16... Bxe5 {[%clk 0:02:31.3]}
17. Qf3 {[%clk 0:02:20.4]} 17... Nf6 {[%clk 0:02:27.3]} 18. Rad1 {[%clk
0:02:18.1]} 18... Bxf4 {[%clk 0:02:23.1]} 19. Qxf4 {[%clk 0:02:17.4]} 19... Nd7
{[%clk 0:02:23.7]} 20. Nb1 {[%clk 0:02:08.1]} 20... Ne5 {[%clk 0:02:22.7]} 21.
Bf1 {[%clk 0:02:06.3]} 21... Bd7 {[%clk 0:02:22.7]} 22. b3 {[%clk 0:02:05.4]}
22... b5 {[%clk 0:02:23]} 23. axb5 {[%clk 0:02:03.9]} 23... axb5 {[%clk
0:02:23.9]} 24. Nd2 {[%clk 0:02:04.1]} 24... Ra2 {[%clk 0:02:22.9]} 25. Bd3
{[%clk 0:02:03]} 25... Rc8 {[%clk 0:02:14.4]} 26. Nf3 {[%clk 0:02:02.2]} 26...
c4 {[%clk 0:02:04.5]} 27. bxc4 {[%clk 0:01:50.2]} 27... bxc4 {[%clk 0:02:05.4]}
28. Bf1 {[%clk 0:01:50.3]} 28... Nxf3+ {[%clk 0:01:56.6]} 29. Qxf3 {[%clk
0:01:44.9]} 29... Rxc2 {[%clk 0:01:57.5]} 30. Rc1 {[%clk 0:01:44.6]} 30... Rxc1
{[%clk 0:01:57.6]} 31. Rxc1 {[%clk 0:01:45.5]} 31... Qe5 {[%clk 0:01:47.6]} 32.
Qe3 {[%clk 0:01:26.4]} 32... c3 {[%clk 0:01:44.2]} 33. Ba6 {[%clk 0:01:21]}
33... Rc5 {[%clk 0:01:41.7]} 34. Rb1 {[%clk 0:01:16.9]} 34... h6 {[%clk
0:01:38.5]} 35. Bd3 {[%clk 0:01:13.8]} 35... Ba4 {[%clk 0:01:16.6]} 36. Rc1
{[%clk 0:01:06.3]} 36... Kh7 {[%clk 0:01:15]} 37. Bc2 {[%clk 0:01:04.8]} 37...
Bxc2 {[%clk 0:01:11.9]} 38. Rxc2 {[%clk 0:01:04.2]} 38... Rc4 {[%clk 0:01:12.4]}
39. Qd3 {[%clk 0:00:59.6]} 39... Rc5 {[%clk 0:00:49.1]} 40. Kf2 {[%clk
0:00:55.2]} 40... h5 {[%clk 0:00:47.5]} 41. Kf3 {[%clk 0:00:55.2]} 41... g6
{[%clk 0:00:47.2]} 42. Qe3 {[%clk 0:00:54.8]} 42... Kg7 {[%clk 0:00:46.7]} 43.
Qf4 {[%clk 0:00:55.1]} 43... Qd4 {[%clk 0:00:42.3]} 44. Ke2 {[%clk 0:00:52.5]}
44... Qc4+ {[%clk 0:00:39.4]} 45. Ke3 {[%clk 0:00:49.8]} 45... Qa4 {[%clk
0:00:23.5]} 46. Rf2 {[%clk 0:00:48.1]} 46... Qa7 {[%clk 0:00:21.7]} 47. Qf6+
{[%clk 0:00:47.1]} 47... Kg8 {[%clk 0:00:20.8]} 48. Qd8+ {[%clk 0:00:46.3]}
48... Kh7 {[%clk 0:00:21.1]} 49. Kd3 {[%clk 0:00:44.2]} 49... c2 {[%clk
0:00:17]} 50. Rxc2 {[%clk 0:00:43.2]} 50... Qa3+ {[%clk 0:00:15.6]} 51. Kd2
{[%clk 0:00:42.8]} 51... Qb4+ {[%clk 0:00:15.9]} 52. Kc1 {[%clk 0:00:37.3]}
52... Qe1+ {[%clk 0:00:15.6]} 53. Kb2 {[%clk 0:00:36.6]} 53... Qb4+ {[%clk
0:00:16.4]} 54. Kc1 {[%clk 0:00:36.5]} 54... Qe1+ {[%clk 0:00:13.3]} 55. Kb2
{[%clk 0:00:36.6]} 55... Rb5+ {[%clk 0:00:13.4]} 56. Ka2 {[%clk 0:00:33.6]}
56... Qb1+ {[%clk 0:00:13.3]} 57. Ka3 {[%clk 0:00:33.4]} 57... Qb3# {[%clk
0:00:14.2]} 0-1

[Event "*** Titled Tuesday Blitz"]
[Site "Chess.com"]
[Date "2020.04.14"]
[Round "3"]
[White "PrinceCharming92"]
[Black "MarcoCorvi"]
[Result "1-0"]
[WhiteElo "2352"]
[BlackElo "2144"]
[TimeControl "180+1"]
[EndTime "10:28:46 PDT"]
[Termination "PrinceCharming92 won by checkmate"]

1. e4 {[%clk 0:03:00.9]} 1... c5 {[%clk 0:02:57.4]} 2. Nc3 {[%clk 0:02:59.4]}
2... g6 {[%clk 0:02:57.3]} 3. f4 {[%clk 0:02:59.3]} 3... Bg7 {[%clk 0:02:55.6]}
4. d3 {[%clk 0:02:59.5]} 4... Nc6 {[%clk 0:02:55.5]} 5. Nf3 {[%clk 0:02:59.5]}
5... d6 {[%clk 0:02:55.6]} 6. g3 {[%clk 0:02:59.6]} 6... Nf6 {[%clk 0:02:55.5]}
7. Bg2 {[%clk 0:03:00.1]} 7... O-O {[%clk 0:02:55.3]} 8. O-O {[%clk 0:03:00.6]}
8... Bd7 {[%clk 0:02:52.9]} 9. h3 {[%clk 0:03:00.2]} 9... a6 {[%clk 0:02:50.6]}
10. g4 {[%clk 0:03:00.5]} 10... b5 {[%clk 0:02:44.9]} 11. Ne2 {[%clk 0:03:00]}
11... Rb8 {[%clk 0:02:39]} 12. Ng3 {[%clk 0:02:56.8]} 12... Nd4 {[%clk
0:02:36.4]} 13. f5 {[%clk 0:02:54.2]} 13... b4 {[%clk 0:02:25.7]} 14. Rb1 {[%clk
0:02:47.8]} 14... a5 {[%clk 0:02:23.7]} 15. b3 {[%clk 0:02:47.1]} 15... a4
{[%clk 0:02:23]} 16. Nxd4 {[%clk 0:02:36.4]} 16... cxd4 {[%clk 0:02:23.9]} 17.
g5 {[%clk 0:02:36.1]} 17... Ne8 {[%clk 0:02:19.2]} 18. Qf3 {[%clk 0:02:32.5]}
18... axb3 {[%clk 0:02:16.4]} 19. axb3 {[%clk 0:02:30.5]} 19... Qa5 {[%clk
0:02:11.9]} 20. Bb2 {[%clk 0:02:23.1]} 20... Qc5 {[%clk 0:02:01.1]} 21. Rf2
{[%clk 0:02:18.4]} 21... Be5 {[%clk 0:01:55.2]} 22. Ra1 {[%clk 0:01:58.4]} 22...
Nc7 {[%clk 0:01:51.9]} 23. Ne2 {[%clk 0:01:44.6]} 23... Nb5 {[%clk 0:01:50.2]}
24. Nf4 {[%clk 0:01:41.3]} 24... Bxf4 {[%clk 0:01:42.2]} 25. Qxf4 {[%clk
0:01:41]} 25... Nc3 {[%clk 0:01:35.6]} 26. f6 {[%clk 0:01:35.7]} 26... exf6
{[%clk 0:01:29.6]} 27. gxf6 {[%clk 0:01:33]} 27... Qh5 {[%clk 0:01:15.2]} 28.
Qxd6 {[%clk 0:01:29.2]} 28... Bxh3 {[%clk 0:01:06.4]} 29. Qh2 {[%clk 0:00:58.4]}
29... Bxg2 {[%clk 0:01:03]} 30. Qxh5 {[%clk 0:00:55.7]} 30... gxh5 {[%clk
0:01:03.9]} 31. Rxg2+ {[%clk 0:00:53.9]} 31... Kh8 {[%clk 0:01:03.9]} 32. Bxc3
{[%clk 0:00:50.5]} 32... dxc3 {[%clk 0:01:01.3]} 33. Ra4 {[%clk 0:00:40]} 33...
Rb6 {[%clk 0:00:52.4]} 34. e5 {[%clk 0:00:36.5]} 34... Rd8 {[%clk 0:00:41]} 35.
Kf2 {[%clk 0:00:30.7]} 35... h6 {[%clk 0:00:39.6]} 36. Ke3 {[%clk 0:00:29.3]}
36... Re8 {[%clk 0:00:30]} 37. Kf4 {[%clk 0:00:23.4]} 37... Rb5 {[%clk
0:00:28.5]} 38. d4 {[%clk 0:00:21.1]} 38... Rd8 {[%clk 0:00:28.5]} 39. Ke4
{[%clk 0:00:21.1]} 39... Re8 {[%clk 0:00:24.7]} 40. Rh2 {[%clk 0:00:20.4]} 40...
Rb6 {[%clk 0:00:24]} 41. Kf5 {[%clk 0:00:18.5]} 41... Rd8 {[%clk 0:00:21.4]} 42.
Rxh5 {[%clk 0:00:17.9]} 42... Kh7 {[%clk 0:00:16.2]} 43. Rh4 {[%clk 0:00:17.5]}
43... Rg8 {[%clk 0:00:14.5]} 44. Ra7 {[%clk 0:00:17.3]} 44... Rg5+ {[%clk
0:00:14.7]} 45. Ke4 {[%clk 0:00:17.5]} 45... Kg8 {[%clk 0:00:14.2]} 46. Ra8+
{[%clk 0:00:17]} 46... Kh7 {[%clk 0:00:12.7]} 47. Rf8 {[%clk 0:00:17.4]} 47...
Kg6 {[%clk 0:00:11.8]} 48. Rg8+ {[%clk 0:00:17.6]} 48... Kh7 {[%clk 0:00:11.2]}
49. Rxg5 {[%clk 0:00:17.9]} 49... Re6 {[%clk 0:00:10.8]} 50. Rg7+ {[%clk
0:00:17.9]} 50... Kh8 {[%clk 0:00:08.8]} 51. Rxh6# {[%clk 0:00:18.8]} 1-0

[Event "*** Titled Tuesday Blitz"]
[Site "Chess.com"]
[Date "2020.04.14"]
[Round "3"]
[White "AttilaTurzo"]
[Black "LileKoridze"]
[Result "1-0"]
[WhiteElo "2505"]
[BlackElo "2273"]
[TimeControl "180+1"]
[EndTime "10:28:47 PDT"]
[Termination "AttilaTurzo won by checkmate"]

1. d4 {[%clk 0:02:56.1]} 1... Nf6 {[%clk 0:02:59.5]} 2. Nf3 {[%clk 0:02:55.3]}
2... e6 {[%clk 0:02:57.7]} 3. Bf4 {[%clk 0:02:54.2]} 3... b5 {[%clk 0:02:54.3]}
4. e3 {[%clk 0:02:52.8]} 4... a6 {[%clk 0:02:53.3]} 5. Bd3 {[%clk 0:02:44.9]}
5... Bb7 {[%clk 0:02:53.1]} 6. a4 {[%clk 0:02:44.4]} 6... b4 {[%clk 0:02:47]} 7.
Nbd2 {[%clk 0:02:44.1]} 7... a5 {[%clk 0:02:39.8]} 8. O-O {[%clk 0:02:38.5]}
8... Be7 {[%clk 0:02:38.2]} 9. e4 {[%clk 0:02:37.9]} 9... d6 {[%clk 0:02:37.4]}
10. h3 {[%clk 0:02:34.1]} 10... O-O {[%clk 0:02:35.6]} 11. Bg5 {[%clk 0:02:24]}
11... h6 {[%clk 0:02:31.9]} 12. Bh4 {[%clk 0:02:19.9]} 12... Nbd7 {[%clk
0:02:28.5]} 13. Re1 {[%clk 0:02:18.1]} 13... e5 {[%clk 0:02:27.4]} 14. c3 {[%clk
0:02:12.6]} 14... bxc3 {[%clk 0:02:26.5]} 15. bxc3 {[%clk 0:02:12.3]} 15... c5
{[%clk 0:02:26.4]} 16. Bxf6 {[%clk 0:01:45.1]} 16... Bxf6 {[%clk 0:02:24.4]} 17.
d5 {[%clk 0:01:44.9]} 17... Be7 {[%clk 0:02:22.7]} 18. Rb1 {[%clk 0:01:42]}
18... Qc7 {[%clk 0:02:21.9]} 19. Nc4 {[%clk 0:01:35.9]} 19... f5 {[%clk
0:02:21]} 20. exf5 {[%clk 0:01:27.4]} 20... Bxd5 {[%clk 0:02:20.9]} 21. Ne3
{[%clk 0:01:26.6]} 21... Bc6 {[%clk 0:02:16.3]} 22. Bc4+ {[%clk 0:01:18.6]}
22... Kh8 {[%clk 0:02:15.9]} 23. Bd5 {[%clk 0:01:18.9]} 23... e4 {[%clk
0:02:12.3]} 24. Nd2 {[%clk 0:01:15.5]} 24... Nf6 {[%clk 0:02:08.1]} 25. Ndc4
{[%clk 0:01:10.6]} 25... Rab8 {[%clk 0:01:55.2]} 26. Rxb8 {[%clk 0:00:32.6]}
26... Rxb8 {[%clk 0:01:54.7]} 27. Bxc6 {[%clk 0:00:33]} 27... Qxc6 {[%clk
0:01:54.9]} 28. Nxa5 {[%clk 0:00:33.9]} 28... Qa6 {[%clk 0:01:50.4]} 29. Nac4
{[%clk 0:00:31.5]} 29... d5 {[%clk 0:01:46.4]} 30. Nxd5 {[%clk 0:00:29.9]} 30...
Rd8 {[%clk 0:01:46]} 31. Nce3 {[%clk 0:00:27.1]} 31... c4 {[%clk 0:01:42.4]} 32.
Nxe7 {[%clk 0:00:24.5]} 32... Rxd1 {[%clk 0:01:41.5]} 33. Rxd1 {[%clk
0:00:25.2]} 33... Qxa4 {[%clk 0:01:29.5]} 34. Rd8+ {[%clk 0:00:23]} 34... Kh7
{[%clk 0:01:29.4]} 35. Ng6 {[%clk 0:00:22]} 35... Ne8 {[%clk 0:01:23.2]} 36. g4
{[%clk 0:00:11.6]} 36... Kg8 {[%clk 0:01:21.5]} 37. Kg2 {[%clk 0:00:10.6]} 37...
Kf7 {[%clk 0:01:20.1]} 38. Ne5+ {[%clk 0:00:08.7]} 38... Kf6 {[%clk 0:01:17.9]}
39. N3xc4 {[%clk 0:00:08.6]} 39... Nc7 {[%clk 0:01:04.1]} 40. Rd7 {[%clk
0:00:08.2]} 40... Nb5 {[%clk 0:00:19.3]} 41. Rf7+ {[%clk 0:00:07.5]} 41... Kg5
{[%clk 0:00:18.7]} 42. Kg3 {[%clk 0:00:07.6]} 42... h5 {[%clk 0:00:16]} 43.
Rxg7+ {[%clk 0:00:05.4]} 43... Kh6 {[%clk 0:00:15.8]} 44. f6 {[%clk 0:00:03.4]}
44... Qb3 {[%clk 0:00:10.6]} 45. g5# {[%clk 0:00:03.4]} 1-0

[Event "*** Titled Tuesday Blitz"]
[Site "Chess.com"]
[Date "2020.04.14"]
[Round "3"]
[White "Ellaijio_B"]
[Black "GasconJR"]
[Result "1-0"]
[WhiteElo "2720"]
[BlackElo "2442"]
[TimeControl "180+1"]
[EndTime "10:28:49 PDT"]
[Termination "Ellaijio_B won by resignation"]

1. e4 {[%clk 0:03:00.9]} 1... c5 {[%clk 0:02:58.5]} 2. Nf3 {[%clk 0:03:00.6]}
2... Nc6 {[%clk 0:02:59]} 3. d4 {[%clk 0:03:01]} 3... cxd4 {[%clk 0:02:59.9]} 4.
Nxd4 {[%clk 0:03:01.9]} 4... Nf6 {[%clk 0:03:00.4]} 5. Nc3 {[%clk 0:03:02.4]}
5... e5 {[%clk 0:03:00.6]} 6. Ndb5 {[%clk 0:03:02.9]} 6... d6 {[%clk 0:03:01]}
7. Bg5 {[%clk 0:03:03.5]} 7... a6 {[%clk 0:03:01.5]} 8. Na3 {[%clk 0:03:04]}
8... b5 {[%clk 0:03:02.2]} 9. Nd5 {[%clk 0:03:04.4]} 9... Be7 {[%clk 0:03:02.4]}
10. Bxf6 {[%clk 0:03:05]} 10... Bxf6 {[%clk 0:03:03.3]} 11. c4 {[%clk
0:03:05.7]} 11... b4 {[%clk 0:03:02.1]} 12. Nc2 {[%clk 0:03:06.1]} 12... O-O
{[%clk 0:03:02.8]} 13. g3 {[%clk 0:03:06.6]} 13... a5 {[%clk 0:02:53.9]} 14. Bg2
{[%clk 0:03:06.7]} 14... Bg5 {[%clk 0:02:48.7]} 15. O-O {[%clk 0:03:06.9]} 15...
Rb8 {[%clk 0:02:36.5]} 16. b3 {[%clk 0:03:06.3]} 16... Ne7 {[%clk 0:02:36]} 17.
Qd3 {[%clk 0:03:04]} 17... Nxd5 {[%clk 0:02:32.8]} 18. Qxd5 {[%clk 0:03:00.2]}
18... Be6 {[%clk 0:02:31]} 19. Qd3 {[%clk 0:03:00.6]} 19... Qc7 {[%clk
0:02:23.5]} 20. Rad1 {[%clk 0:03:00]} 20... Rfd8 {[%clk 0:02:22.6]} 21. h4
{[%clk 0:03:00.3]} 21... Bh6 {[%clk 0:02:13.8]} 22. Kh2 {[%clk 0:02:59]} 22...
Bc8 {[%clk 0:01:30.4]} 23. Bh3 {[%clk 0:02:47.7]} 23... Bb7 {[%clk 0:01:26.9]}
24. Qe2 {[%clk 0:02:32.5]} 24... Qc5 {[%clk 0:01:24.3]} 25. Bg2 {[%clk
0:02:18.6]} 25... g6 {[%clk 0:01:21.7]} 26. h5 {[%clk 0:02:17.7]} 26... Kg7
{[%clk 0:01:11.7]} 27. Qg4 {[%clk 0:02:08]} 27... Bc8 {[%clk 0:01:10.9]} 28. Qe2
{[%clk 0:02:07]} 28... Bb7 {[%clk 0:01:10.6]} 29. Rh1 {[%clk 0:02:06]} 29... Rf8
{[%clk 0:00:47.6]} 30. Kg1 {[%clk 0:01:53.6]} 30... f5 {[%clk 0:00:33.9]} 31.
hxg6 {[%clk 0:01:53.7]} 31... hxg6 {[%clk 0:00:33.8]} 32. exf5 {[%clk
0:01:47.2]} 32... Bxg2 {[%clk 0:00:32.5]} 33. Kxg2 {[%clk 0:01:48.1]} 33... Rxf5
{[%clk 0:00:31.8]} 34. Rxh6 {[%clk 0:01:08.3]} 34... Kxh6 {[%clk 0:00:29]} 35.
Qd2+ {[%clk 0:01:06.3]} 35... Kg7 {[%clk 0:00:27.5]} 36. Ne3 {[%clk 0:01:06.7]}
36... Rh5 {[%clk 0:00:23.2]} 37. Qxd6 {[%clk 0:01:01.3]} 37... Qxd6 {[%clk
0:00:22]} 38. Rxd6 {[%clk 0:01:02.2]} 38... a4 {[%clk 0:00:20.5]} 39. Rd7+
{[%clk 0:00:52.3]} 39... Kf6 {[%clk 0:00:19.2]} 40. c5 {[%clk 0:00:34.8]} 40...
e4 {[%clk 0:00:18.6]} 41. Nd5+ {[%clk 0:00:30.1]} 41... Ke6 {[%clk 0:00:18.1]}
42. Rd6+ {[%clk 0:00:30.2]} 42... Kf7 {[%clk 0:00:18.5]} 43. c6 {[%clk
0:00:27.7]} 43... axb3 {[%clk 0:00:15.8]} 44. axb3 {[%clk 0:00:27.4]} 44... Rc8
{[%clk 0:00:16]} 45. Rd7+ {[%clk 0:00:21.4]} 45... Ke6 {[%clk 0:00:15.9]} 46.
Nf4+ {[%clk 0:00:20.6]} 46... Ke5 {[%clk 0:00:13.8]} 47. Rd5+ {[%clk 0:00:19.1]}
47... Kf6 {[%clk 0:00:13.2]} 48. Nxh5+ {[%clk 0:00:17.9]} 48... gxh5 {[%clk
0:00:14.1]} 49. Rc5 {[%clk 0:00:17.8]} 49... Ke6 {[%clk 0:00:14.3]} 50. Rxh5
{[%clk 0:00:15.6]} 1-0

[Event "*** Titled Tuesday Blitz"]
[Site "Chess.com"]
[Date "2020.04.14"]
[Round "3"]
[White "mishanick"]
[Black "KobyKalavannan"]
[Result "1-0"]
[WhiteElo "3009"]
[BlackElo "2684"]
[TimeControl "180+1"]
[EndTime "10:28:50 PDT"]
[Termination "mishanick won by resignation"]

1. d4 {[%clk 0:02:53.5]} 1... Nf6 {[%clk 0:02:59.6]} 2. c4 {[%clk 0:02:54]} 2...
g6 {[%clk 0:03:00]} 3. Nc3 {[%clk 0:02:53.8]} 3... Bg7 {[%clk 0:03:00.5]} 4. e4
{[%clk 0:02:53.7]} 4... d6 {[%clk 0:03:00.9]} 5. Be2 {[%clk 0:02:54.2]} 5... O-O
{[%clk 0:03:01.1]} 6. Be3 {[%clk 0:02:54.4]} 6... Na6 {[%clk 0:02:59]} 7. Nf3
{[%clk 0:02:53.6]} 7... c5 {[%clk 0:02:57.9]} 8. d5 {[%clk 0:02:52.4]} 8... e6
{[%clk 0:02:58]} 9. O-O {[%clk 0:02:51.6]} 9... exd5 {[%clk 0:02:58.3]} 10. cxd5
{[%clk 0:02:52]} 10... Re8 {[%clk 0:02:56.4]} 11. Nd2 {[%clk 0:02:51.4]} 11...
Nc7 {[%clk 0:02:49.1]} 12. a4 {[%clk 0:02:50.1]} 12... b6 {[%clk 0:02:47.2]} 13.
Bf4 {[%clk 0:02:48.2]} 13... Ba6 {[%clk 0:02:44]} 14. Bxa6 {[%clk 0:02:43.1]}
14... Nxa6 {[%clk 0:02:44.3]} 15. Re1 {[%clk 0:02:43.7]} 15... Qd7 {[%clk
0:02:33.7]} 16. Nc4 {[%clk 0:02:40.4]} 16... Bf8 {[%clk 0:02:32.4]} 17. Qf3
{[%clk 0:02:32.5]} 17... Nh5 {[%clk 0:02:28.3]} 18. Bg5 {[%clk 0:02:28.6]} 18...
h6 {[%clk 0:02:02.8]} 19. Be3 {[%clk 0:02:24.4]} 19... Bg7 {[%clk 0:01:42]} 20.
g4 {[%clk 0:02:22]} 20... Nf6 {[%clk 0:01:41.1]} 21. h3 {[%clk 0:02:19.2]} 21...
g5 {[%clk 0:01:39.7]} 22. Rad1 {[%clk 0:02:15.9]} 22... Nb4 {[%clk 0:01:39.5]}
23. Re2 {[%clk 0:02:09.1]} 23... Re7 {[%clk 0:01:26.3]} 24. Bc1 {[%clk
0:01:30.4]} 24... Rae8 {[%clk 0:01:14.7]} 25. Rde1 {[%clk 0:01:16.3]} 25... Nh7
{[%clk 0:01:08.1]} 26. Nb5 {[%clk 0:01:02.9]} 26... Be5 {[%clk 0:01:04.5]} 27.
b3 {[%clk 0:00:57]} 27... Nf8 {[%clk 0:01:01.1]} 28. Nxe5 {[%clk 0:00:50.9]}
28... dxe5 {[%clk 0:01:01.3]} 29. Qf6 {[%clk 0:00:40.4]} 29... Ng6 {[%clk
0:01:01.7]} 30. Nd6 {[%clk 0:00:34]} 30... Re6 {[%clk 0:00:32.1]} 31. dxe6
{[%clk 0:00:33.6]} 31... Rxe6 {[%clk 0:00:32.2]} 32. Qxf7+ {[%clk 0:00:33.4]}
32... Qxf7 {[%clk 0:00:32.4]} 33. Nxf7 {[%clk 0:00:34.3]} 33... Kxf7 {[%clk
0:00:33.3]} 34. Rd1 {[%clk 0:00:34.3]} 34... Re7 {[%clk 0:00:26.4]} 35. Rd6
{[%clk 0:00:31.4]} 35... Kg7 {[%clk 0:00:23.2]} 36. Be3 {[%clk 0:00:29.8]} 36...
Nf4 {[%clk 0:00:23.1]} 37. Bxf4 {[%clk 0:00:29.7]} 37... exf4 {[%clk 0:00:23.7]}
38. f3 {[%clk 0:00:27.5]} 38... Kf7 {[%clk 0:00:18.5]} 39. Red2 {[%clk
0:00:25.9]} 39... Kg7 {[%clk 0:00:13.6]} 40. Rd7 {[%clk 0:00:23.6]} 40... Kf8
{[%clk 0:00:14.1]} 41. R2d6 {[%clk 0:00:21.3]} 41... Rxd7 {[%clk 0:00:11.8]} 42.
Rxd7 {[%clk 0:00:22.2]} 42... Nc6 {[%clk 0:00:12.4]} 43. Kf2 {[%clk 0:00:18.9]}
43... Nd4 {[%clk 0:00:12.9]} 44. Rxa7 {[%clk 0:00:18.9]} 44... Nxb3 {[%clk
0:00:13.4]} 45. Rb7 {[%clk 0:00:19.5]} 45... c4 {[%clk 0:00:11.6]} 46. Rxb6
{[%clk 0:00:19.4]} 46... Nc5 {[%clk 0:00:11]} 47. Rc6 {[%clk 0:00:19]} 47...
Nd3+ {[%clk 0:00:11.6]} 48. Ke2 {[%clk 0:00:18.3]} 48... Ne5 {[%clk 0:00:12]}
49. Rc5 {[%clk 0:00:18.5]} 49... Nd3 {[%clk 0:00:11.4]} 50. Rxc4 {[%clk
0:00:18.4]} 50... Nb2 {[%clk 0:00:12.3]} 51. Rb4 {[%clk 0:00:17.8]} 51... h5
{[%clk 0:00:09.6]} 52. Rxb2 {[%clk 0:00:16.8]} 52... hxg4 {[%clk 0:00:09.7]} 53.
hxg4 {[%clk 0:00:17.7]} 53... Ke7 {[%clk 0:00:10.3]} 54. Rb6 {[%clk 0:00:18.3]}
1-0

[Event "*** Titled Tuesday Blitz"]
[Site "Chess.com"]
[Date "2020.04.14"]
[Round "3"]
[White "Anton_Demchenko"]
[Black "starworld123"]
[Result "1-0"]
[WhiteElo "2937"]
[BlackElo "2607"]
[TimeControl "180+1"]
[EndTime "10:28:52 PDT"]
[Termination "Anton_Demchenko won by resignation"]

1. d4 {[%clk 0:03:00.9]} 1... Nf6 {[%clk 0:03:00.1]} 2. Nf3 {[%clk 0:03:01.4]}
2... d5 {[%clk 0:02:59.5]} 3. Bf4 {[%clk 0:03:01.4]} 3... c5 {[%clk 0:02:59.7]}
4. e3 {[%clk 0:03:01.8]} 4... Nc6 {[%clk 0:03:00.1]} 5. Nbd2 {[%clk 0:03:01.9]}
5... Qb6 {[%clk 0:03:00]} 6. dxc5 {[%clk 0:03:01.5]} 6... Qxb2 {[%clk
0:03:00.7]} 7. Rb1 {[%clk 0:03:01.9]} 7... Qc3 {[%clk 0:03:01.3]} 8. Bb5 {[%clk
0:03:01.6]} 8... e6 {[%clk 0:03:01.7]} 9. O-O {[%clk 0:03:00]} 9... Bxc5 {[%clk
0:02:34.6]} 10. Nb3 {[%clk 0:02:21.9]} 10... O-O {[%clk 0:01:57]} 11. Bxc6
{[%clk 0:02:00.3]} 11... bxc6 {[%clk 0:01:57.9]} 12. Be5 {[%clk 0:02:00.8]}
12... Qb4 {[%clk 0:01:43.8]} 13. Nfd4 {[%clk 0:01:04.7]} 13... Bxd4 {[%clk
0:01:17.4]} 14. Bxd4 {[%clk 0:00:53.5]} 14... Ne4 {[%clk 0:01:07.2]} 15. f3
{[%clk 0:00:52.3]} 15... Nc3 {[%clk 0:00:31.6]} 16. Qe1 {[%clk 0:00:49.1]} 16...
Nxa2 {[%clk 0:00:31.8]} 17. Qg3 {[%clk 0:00:17.5]} 17... f6 {[%clk 0:00:31.7]}
18. Ra1 {[%clk 0:00:11.3]} 18... Nc3 {[%clk 0:00:25.1]} 19. Qe1 {[%clk
0:00:11.4]} 19... Qc4 {[%clk 0:00:13.9]} 20. Qxc3 {[%clk 0:00:10.9]} 20... e5
{[%clk 0:00:14.3]} 21. Qxc4 {[%clk 0:00:08.7]} 21... dxc4 {[%clk 0:00:15.2]} 22.
Bc5 {[%clk 0:00:09.3]} 22... cxb3 {[%clk 0:00:15.1]} 23. Bxf8 {[%clk 0:00:09.7]}
23... Kxf8 {[%clk 0:00:13.6]} 24. cxb3 {[%clk 0:00:10]} 24... Be6 {[%clk
0:00:14.5]} 25. b4 {[%clk 0:00:06.5]} 25... Ke7 {[%clk 0:00:13.8]} 26. Rfc1
{[%clk 0:00:05.9]} 26... Kd6 {[%clk 0:00:14]} 27. Rd1+ {[%clk 0:00:05.6]} 27...
Kc7 {[%clk 0:00:14.4]} 28. Rdc1 {[%clk 0:00:05.6]} 28... Kb6 {[%clk 0:00:14.4]}
29. e4 {[%clk 0:00:05]} 29... Rd8 {[%clk 0:00:14.1]} 30. Rc2 {[%clk 0:00:05.2]}
30... Rd4 {[%clk 0:00:13.7]} 31. Rb2 {[%clk 0:00:04.2]} 31... a6 {[%clk
0:00:14.2]} 32. Kf2 {[%clk 0:00:04.3]} 32... Bc4 {[%clk 0:00:14.7]} 33. h4
{[%clk 0:00:04]} 33... h5 {[%clk 0:00:14.5]} 34. Ra3 {[%clk 0:00:04.3]} 34...
Bb5 {[%clk 0:00:14.7]} 35. Rc3 {[%clk 0:00:04.5]} 35... Rd1 {[%clk 0:00:13.8]}
36. Rcc2 {[%clk 0:00:04.7]} 36... Rd4 {[%clk 0:00:12.1]} 37. Rd2 {[%clk
0:00:04.7]} 37... c5 {[%clk 0:00:08.8]} 38. bxc5+ {[%clk 0:00:04.5]} 38... Kxc5
{[%clk 0:00:09.7]} 39. Rbc2+ {[%clk 0:00:04.9]} 39... Kb4 {[%clk 0:00:07.3]} 40.
Ke3 {[%clk 0:00:04.8]} 40... Rd3+ {[%clk 0:00:06.3]} 41. Rxd3 {[%clk 0:00:04.8]}
41... Bxd3 {[%clk 0:00:05.7]} 42. Kxd3 {[%clk 0:00:05.7]} 42... a5 {[%clk
0:00:06.6]} 43. Rb2+ {[%clk 0:00:06]} 43... Ka3 {[%clk 0:00:06.5]} 44. Rb7
{[%clk 0:00:06.9]} 44... a4 {[%clk 0:00:07.4]} 45. Rxg7 {[%clk 0:00:06.6]} 1-0